fUST/lending_fUST_20250430
["ID","MTS","AMOUNT","RATE_DAILY","PERIOD"]
[359419938,1746000647377,-400.0,0.00030136,5]
[359419939,1746000647387,-400.0,0.00030136,5]
[359419940,1746000647398,-400.0,0.00030136,5]
[359419941,1746000647408,-400.0,0.00030136,5]
[359419942,1746000647418,-400.0,0.00030136,5]
[359419943,1746000647429,-475.95733066,0.00030136,5]
[359419944,1746000647439,-400.0,0.00030136,5]
[359419945,1746000647450,-400.0,0.00030136,5]
[359419946,1746000647460,-400.0,0.00030136,5]
[359419947,1746000647470,-400.0,0.00030136,5]
[359419948,1746000647481,-400.0,0.00030136,5]
[359419949,1746000647491,-400.0,0.00030136,5]
[359419950,1746000647501,-400.0,0.00030136,5]
[359419951,1746000647511,-400.0,0.00030136,5]
[359419952,1746000647520,-400.0,0.00030136,5]
[359419953,1746000647529,-400.0,0.00030136,5]
[359419954,1746000647538,-400.0,0.00030136,5]
[359419955,1746000647547,-400.0,0.00030136,5]
[359419956,1746000647556,-509.28575993,0.00030136,5]
[359419957,1746000647566,-400.0,0.00030136,5]
[359419958,1746000647576,-400.0,0.00030136,5]
[359419959,1746000647585,-400.0,0.00030136,5]
[359419960,1746000647594,-400.0,0.00030136,5]
[359419961,1746000647603,-400.0,0.00030136,5]
[359419962,1746000647613,-400.0,0.00030136,5]
[359419963,1746000647625,-400.0,0.00030136,5]
[359419964,1746000647636,-400.0,0.00030136,5]
[359419965,1746000647646,-400.0,0.00030136,5]
[359419966,1746000647657,-400.0,0.00030136,5]
[359419967,1746000647667,-301.28,0.00030136,5]
[359419968,1746000647677,-400.0,0.00030136,5]
[359419969,1746000647686,-400.0,0.00030136,5]
[359419970,1746000647697,-400.0,0.00030136,5]
[359419971,1746000647706,-400.0,0.00030136,5]
[359419972,1746000647717,-400.0,0.00030136,5]
[359419973,1746000647726,-400.0,0.00030136,5]
[359419974,1746000647736,-400.0,0.00030136,5]
[359419975,1746000647746,-400.0,0.00030136,5]
[359419976,1746000647756,-400.0,0.00030136,5]
[359419977,1746000647766,-400.0,0.00030136,5]
[359419978,1746000647775,-484.31138853,0.00030136,5]
[359419979,1746000647786,-400.0,0.00030136,5]
[359419980,1746000647799,-400.0,0.00030136,5]
[359419981,1746000647808,-400.0,0.00030136,5]
[359419982,1746000647817,-400.0,0.00030136,5]
[359419983,1746000647827,-400.0,0.00030136,5]
[359419984,1746000647837,-400.0,0.00030136,5]
[359419985,1746000647846,-410.4463115,0.00030136,5]
[359419986,1746000647855,-400.0,0.00030136,5]
[359419987,1746000647865,-442.88687832,0.00030136,5]
[359419988,1746000647875,-400.0,0.00030136,5]
[359419989,1746000647885,-400.0,0.00030136,5]
[359419990,1746000647895,-400.0,0.00030136,5]
[359419991,1746000647905,-400.0,0.00030136,5]
[359419992,1746000647915,-400.0,0.00030136,5]
[359419993,1746000647926,-400.0,0.00030136,5]
[359419994,1746000647936,-536.33634785,0.00030136,5]
[359419995,1746000647946,-1149.96,0.00030136,5]
[359419996,1746000647956,-400.0,0.00030136,5]
[359419997,1746000647966,-1149.96,0.00030136,5]
[359419998,1746000647977,-400.0,0.00030136,5]
[359419999,1746000647987,-400.0,0.00030136,5]
[359420000,1746000647996,-1149.96,0.00030136,5]
[359420001,1746000648007,-400.0,0.00030136,5]
[359420002,1746000648017,-1149.96,0.00030136,5]
[359420003,1746000648028,-400.0,0.00030136,5]
[359420004,1746000648039,-1149.96,0.00030136,5]
[359420005,1746000648049,-400.0,0.00030136,5]
[359420006,1746000648060,-226.84050096,0.00030136,5]
[359420007,1746000648070,-1149.96,0.00030136,5]
[359420008,1746000648080,-1149.96,0.00030136,5]
[359420009,1746000648091,-1149.96,0.00030136,5]
[359420010,1746000648101,-1149.96,0.00030136,5]
[359420011,1746000648112,-1149.96,0.00030136,5]
[359420012,1746000648235,-1149.96,0.00030136,5]
[359420013,1746000648262,-1149.96,0.00030136,5]
[359420014,1746000648272,-1149.96,0.00030136,5]
[359420015,1746000648282,-1149.96,0.00030136,5]
[359420016,1746000648291,-1149.96,0.00030136,5]
[359420017,1746000648301,-1149.96,0.00030136,5]
[359420018,1746000648311,-1149.96,0.00030136,5]
[359420019,1746000648320,-1149.96,0.00030136,5]
[359420020,1746000648330,-1149.96,0.00030136,5]
[359420021,1746000648340,-1149.96,0.00030136,5]
[359420022,1746000648350,-1149.96,0.00030136,5]
[359420023,1746000648360,-1149.96,0.00030136,5]
[359420024,1746000648370,-1149.96,0.00030136,5]
[359420025,1746000648380,-1150.12325624,0.00030136,5]
[359420026,1746000648390,-400.0,0.00030136,5]
[359420027,1746000648399,-400.0,0.00030136,5]
[359420028,1746000648410,-400.0,0.00030136,5]
[359420029,1746000648420,-400.0,0.00030136,5]
[359420030,1746000648429,-400.0,0.00030136,5]
[359420031,1746000648439,-400.0,0.00030136,5]
[359420032,1746000648450,-535.69647275,0.00030136,5]
[359420033,1746000648460,-625.78,0.00030136,5]
[359420034,1746000648473,-400.0,0.00030136,5]
[359420035,1746000648485,-625.78,0.00030136,5]
[359420036,1746000648494,-625.78,0.00030136,5]
[359420037,1746000648505,-625.78,0.00030136,5]
[359420038,1746000648515,-625.78,0.00030136,5]
[359420039,1746000648525,-400.0,0.00030136,5]
[359420040,1746000648535,-625.78,0.00030136,5]
[359420041,1746000648546,-403.48500151,0.00030136,5]
[359420042,1746000648556,-625.78,0.00030136,5]
[359420043,1746000648566,-625.78,0.00030136,5]
[359420044,1746000648577,-625.78,0.00030136,5]
[359420045,1746000648588,-625.78,0.00030136,5]
[359420046,1746000648599,-625.78,0.00030136,5]
[359420047,1746000648609,-400.0,0.00030136,5]
[359420048,1746000648620,-625.78,0.00030136,5]
[359420049,1746000648631,-400.0,0.00030136,5]
[359420050,1746000648641,-625.78,0.00030136,5]
[359420051,1746000648651,-400.0,0.00030136,5]
[359420052,1746000648662,-625.78,0.00030136,5]
[359420053,1746000648671,-625.78,0.00030136,5]
[359420054,1746000648681,-400.0,0.00030136,5]
[359420055,1746000648691,-625.78,0.00030136,5]
[359420056,1746000648700,-400.0,0.00030136,5]
[359420057,1746000648709,-625.78,0.00030136,5]
[359420058,1746000648719,-625.78,0.00030136,5]
[359420059,1746000648729,-625.78,0.00030136,5]
[359420060,1746000648739,-625.78,0.00030136,5]
[359420061,1746000648750,-625.78,0.00030136,5]
[359420062,1746000648759,-625.78,0.00030136,5]
[359420063,1746000648768,-625.78,0.00030136,5]
[359420064,1746000648778,-625.91,0.00030136,5]
[359420065,1746000648788,-400.0,0.00030136,5]
[359420066,1746000648799,-404.05673312,0.00030136,5]
[359420067,1746000648809,-400.0,0.00030136,5]
[359420068,1746000648819,-400.0,0.00030136,5]
[359420069,1746000648828,-400.0,0.00030136,5]
[359420070,1746000648839,-400.0,0.00030136,5]
[359420071,1746000648849,-400.0,0.00030136,5]
[359420072,1746000648858,-400.0,0.00030136,5]
[359420073,1746000648869,-400.0,0.00030136,5]
[359420074,1746000648878,-400.0,0.00030136,5]
[359420075,1746000648889,-400.0,0.00030136,5]
[359420076,1746000648898,-400.0,0.00030136,5]
[359420077,1746000648910,-400.0,0.00030136,5]
[359420078,1746000648920,-400.0,0.00030136,5]
[359420079,1746000648930,-400.0,0.00030136,5]
[359420080,1746000648939,-400.0,0.00030136,5]
[359420081,1746000648950,-400.0,0.00030136,5]
[359420082,1746000648960,-400.0,0.00030136,5]
[359420083,1746000648970,-400.0,0.00030136,5]
[359420084,1746000648980,-400.0,0.00030136,5]
[359420085,1746000648989,-400.0,0.00030136,5]
[359420086,1746000648999,-400.0,0.00030136,5]
[359420087,1746000649009,-400.0,0.00030136,5]
[359420088,1746000649019,-400.0,0.00030136,5]
[359420089,1746000649029,-400.0,0.00030136,5]
[359420090,1746000649040,-400.0,0.00030136,5]
[359420091,1746000649050,-400.0,0.00030136,5]
[359420092,1746000649059,-400.0,0.00030136,5]
[359420093,1746000649070,-400.0,0.00030136,5]
[359420094,1746000649079,-400.0,0.00030136,5]
[359420095,1746000649089,-162.90691167,0.00030136,5]
[359420096,1746000649098,-400.0,0.00030136,5]
[359420097,1746000649108,-400.0,0.00030136,5]
[359420098,1746000649118,-400.0,0.00030136,5]
[359420099,1746000649129,-400.0,0.00030136,5]
[359420100,1746000649139,-400.0,0.00030136,5]
[359420101,1746000649149,-400.0,0.00030136,5]
[359420102,1746000649159,-400.0,0.00030136,5]
[359420103,1746000649169,-400.0,0.00030136,5]
[359420104,1746000649179,-400.0,0.00030136,5]
[359420105,1746000649190,-121.18354728,0.00030136,5]
[359420106,1746000649530,-66.41645272,0.00030136,5]
[359420107,1746000649540,-400.0,0.00030136,5]
[359420108,1746000649550,-180.74,0.00030136,5]
[359420109,1746000649560,-402.04246067,0.00030136,5]
[359420110,1746000649569,-400.69389699,0.00030136,5]
[359420111,1746000649579,-400.0,0.00030136,5]
[359420112,1746000649589,-400.0,0.00030136,5]
[359420113,1746000649599,-400.0,0.00030136,5]
[359420114,1746000649609,-400.0,0.00030136,5]
[359420115,1746000649619,-400.0,0.00030136,5]
[359420116,1746000649629,-400.0,0.00030136,5]
[359420117,1746000649640,-400.0,0.00030136,5]
[359420118,1746000649651,-400.0,0.00030136,5]
[359420119,1746000649661,-307.65858043,0.00030136,5]
[359420120,1746000649671,-400.0,0.00030136,5]
[359420121,1746000649680,-322.24208896,0.00030136,5]
[359420122,1746000649694,-77.75791104,0.00030136,5]
[359420123,1746000649704,-469.644527,0.00030136,5]
[359420124,1746000649714,-140.22666245,0.00030136,5]
[359420125,1746000649725,-259.77333755,0.00030136,5]
[359420126,1746000649736,-272.49146245,0.00030136,5]
[359420127,1746000649833,-127.50853755,0.00030136,5]
[359420128,1746000649843,-400.0,0.00030136,5]
[359420129,1746000649853,-400.0,0.00030136,5]
[359420130,1746000649863,-400.0,0.00030136,5]
[359420131,1746000649874,-400.0,0.00030136,5]
[359420132,1746000649884,-428.27645219,0.00030136,5]
[359420133,1746000649893,-400.0,0.00030136,5]
[359420134,1746000649903,-400.0,0.00030136,5]
[359420135,1746000649914,-400.0,0.00030136,5]
[359420136,1746000649924,-395.81405318,0.00030136,5]
[359420137,1746000649937,-4.18594682,0.00030136,5]
[359420138,1746000649949,-304.1,0.00030136,5]
[359420139,1746000649959,-400.0,0.00030136,5]
[359420140,1746000649969,-400.0,0.00030136,5]
[359420141,1746000649980,-400.0,0.00030136,5]
[359420142,1746000649991,-400.0,0.00030136,5]
[359420143,1746000650001,-400.0,0.00030136,5]
[359420144,1746000650012,-400.0,0.00030136,5]
[359420145,1746000650022,-400.0,0.00030136,5]
[359420146,1746000650033,-520.25501996,0.00030136,5]
[359420147,1746000650043,-498.99,0.00030136,5]
[359420148,1746000650054,-400.0,0.00030136,5]
[359420149,1746000650064,-308.58172798,0.00030136,5]
[359420150,1746000650078,-45.32524588,0.00030136,5]
[359420151,1746000650088,-400.0,0.00030136,5]
[359420152,1746000650099,-235.36,0.00030136,5]
[359420153,1746000650109,-400.0,0.00030136,5]
[359420154,1746000650120,-503.23961561,0.00030136,5]
[359420155,1746000650130,-400.0,0.00030136,5]
[359420156,1746000650141,-400.0,0.00030136,5]
[359420157,1746000650152,-400.0,0.00030136,5]
[359420158,1746000650163,-400.0,0.00030136,5]
[359420159,1746000650173,-400.0,0.00030136,5]
[359420160,1746000650183,-400.0,0.00030136,5]
[359420161,1746000650193,-198.17016406,0.00030136,5]
[359420162,1746000650204,-500.92263608,0.00030136,5]
[359420163,1746000650213,-400.0,0.00030136,5]
[359420164,1746000650223,-200.0103132,0.00030136,5]
[359420165,1746000650234,-400.0,0.00030136,5]
[359420166,1746000650244,-792.86,0.00030136,5]
[359420167,1746000650254,-792.86,0.00030136,5]
[359420168,1746000650264,-792.86,0.00030136,5]
[359420169,1746000650275,-792.86,0.00030136,5]
[359420170,1746000650285,-792.86,0.00030136,5]
[359420171,1746000650295,-792.86,0.00030136,5]
[359420172,1746000650306,-792.86,0.00030136,5]
[359420173,1746000650316,-452.09,0.00030136,5]
[359420174,1746000650326,-792.86,0.00030136,5]
[359420175,1746000650336,-452.09,0.00030136,5]
[359420176,1746000650346,-792.86,0.00030136,5]
[359420177,1746000650356,-792.86,0.00030136,5]
[359420178,1746000650366,-792.86,0.00030136,5]
[359420179,1746000650377,-210.2352336,0.00030136,5]
[359420180,1746000650387,-792.86,0.00030136,5]
[359420181,1746000650398,-792.86,0.00030136,5]
[359420182,1746000650409,-792.86,0.00030136,5]
[359420183,1746000650419,-792.86,0.00030136,5]
[359420184,1746000650429,-400.0,0.00030136,5]
[359420185,1746000650437,-540.76296357,0.00030136,5]
[359420186,1746000650454,-252.09703643,0.00030136,5]
[359420187,1746000650463,-274.87296357,0.00030136,5]
[359420188,1746000650476,-125.12703643,0.00030136,5]
[359420189,1746000650486,-431.09954056,0.00030136,5]
[359420190,1746000653145,350.0,0.000273,30]
[359420194,1746001022446,100000.0,0.00027,30]
[359420196,1746001059258,97941.18869409,0.00027,30]
[359420226,1746001637136,-1028.71354901,0.00024444,8]
[359420227,1746001637157,-166.81746449,0.00026351,2]
[359420228,1746001637178,-300.0,0.0002645,2]
[359420229,1746001637198,-171.24006675,0.00026451,3]
[359420230,1746001642101,-574.12437755,0.00026451,3]
[359420231,1746001645097,-242.16967597,0.00026451,3]
[359420255,1746001747210,-300.0,0.0002645,2]
[359420256,1746001747230,-75483.55511783,0.00026451,3]
[359420257,1746001747251,-421.37435881,0.00026451,3]
[359420258,1746001747274,-3334.1165821,0.00026451,2]
[359420259,1746001747295,-300.0,0.000265,2]
[359420260,1746001747316,-500.0,0.000265,2]
[359420261,1746001747336,-500.0,0.000265,2]
[359420262,1746001747359,-500.0,0.000265,2]
[359420263,1746001747380,-500.0,0.000265,2]
[359420264,1746001747399,-500.0,0.000265,2]
[359420265,1746001747419,-216.298747,0.0002699,2]
[359420266,1746001747439,-1200.0,0.00026999,2]
[359420267,1746001747459,-182.04053198,0.00027,3]
[359420268,1746001747480,-182.04053198,0.00027,3]
[359420269,1746001747501,-896.54715539,0.00027295,2]
[359420270,1746001747520,-151.0,0.000273,3]
[359420271,1746001747542,-500.0,0.00027384,2]
[359420272,1746001747563,-500.0,0.00027384,2]
[359420273,1746001747585,-500.0,0.00027384,2]
[359420274,1746001747610,-384.0308544,0.00027384,2]
[359420275,1746001747639,-500.0,0.00027384,2]
[359420276,1746001747668,-366.95437871,0.00027384,2]
[359420277,1746001747700,-500.0,0.00027384,2]
[359420278,1746001747731,-500.0,0.00027384,2]
[359420279,1746001747762,-500.0,0.00027384,2]
[359420280,1746001747795,-500.0,0.00027384,2]
[359420281,1746001747833,-500.0,0.00027384,2]
[359420282,1746001747878,-500.0,0.00027384,2]
[359420283,1746001747909,-500.0,0.00027384,2]
[359420284,1746001747944,-500.0,0.00027384,2]
[359420285,1746001747978,-500.0,0.00027384,2]
[359420286,1746001748011,-500.0,0.00027384,2]
[359420287,1746001748041,-500.0,0.00027384,2]
[359420288,1746001748069,-500.0,0.00027384,2]
[359420289,1746001748100,-500.0,0.00027384,2]
[359420290,1746001748132,-500.0,0.00027384,2]
[359420291,1746001748166,-500.0,0.00027384,2]
[359420292,1746001748200,-500.0,0.00027384,2]
[359420293,1746001748232,-500.0,0.00027384,2]
[359420294,1746001748261,-500.0,0.00027384,2]
[359420295,1746001748295,-500.0,0.00027384,2]
[359420296,1746001748326,-500.0,0.00027384,2]
[359420297,1746001748360,-500.0,0.00027384,2]
[359420298,1746001748390,-500.0,0.00027384,2]
[359420299,1746001748418,-500.0,0.00027384,2]
[359420300,1746001748450,-500.0,0.00027384,2]
[359420301,1746001748481,-500.0,0.00027384,2]
[359420302,1746001748509,-500.0,0.00027384,2]
[359420303,1746001748539,-500.0,0.00027384,2]
[359420304,1746001748572,-500.0,0.00027384,2]
[359420305,1746001748602,-500.0,0.00027384,2]
[359420306,1746001748634,-500.0,0.00027384,2]
[359420307,1746001748663,-500.0,0.00027384,2]
[359420308,1746001748693,-500.0,0.00027384,2]
[359420309,1746001748722,-500.0,0.00027384,2]
[359420310,1746001748750,-500.0,0.00027384,2]
[359420311,1746001748778,-500.0,0.00027384,2]
[359420312,1746001748807,-500.0,0.00027384,2]
[359420313,1746001748835,-500.0,0.00027384,2]
[359420314,1746001748864,-500.0,0.00027384,2]
[359420315,1746001748892,-500.0,0.00027384,2]
[359420316,1746001748920,-500.0,0.00027384,2]
[359420317,1746001748949,-500.0,0.00027384,2]
[359420318,1746001748977,-500.0,0.00027384,2]
[359420319,1746001749005,-500.0,0.00027384,2]
[359420320,1746001749043,-500.0,0.00027384,2]
[359420321,1746001749071,-500.0,0.00027384,2]
[359420322,1746001749099,-500.0,0.00027384,2]
[359420323,1746001749132,-500.0,0.00027384,2]
[359420324,1746001749164,-500.0,0.00027384,2]
[359420325,1746001749196,-500.0,0.00027384,2]
[359420326,1746001749226,-500.0,0.00027384,2]
[359420327,1746001749259,-500.0,0.00027384,2]
[359420328,1746001749300,-500.0,0.00027384,2]
[359420329,1746001749335,-500.55156057,0.00027384,2]
[359420330,1746001749368,-500.0,0.00027384,2]
[359420331,1746001749399,-500.0,0.00027384,2]
[359420332,1746001749430,-500.0,0.00027384,2]
[359420333,1746001749459,-500.0,0.00027384,2]
[359420334,1746001749488,-500.0,0.00027384,2]
[359420335,1746001749517,-500.0,0.00027384,2]
[359420336,1746001749544,-39143.7053987,0.00027385,2]
[359420337,1746001749569,-39143.7053987,0.00027386,2]
[359420338,1746001749591,-26510.92951332,0.00027396,2]
[359420339,1746001749612,-300.0,0.00027396,2]
[359420340,1746001749634,-499.917647,0.00027397,2]
[359420341,1746001749859,-500.0,0.000274,5]
[359420342,1746001749895,-500.0,0.000274,5]
[359420343,1746001749916,-300.0,0.0002788,2]
[359420344,1746001749938,-24900.0,0.00027882,2]
[359420345,1746001749962,-502.91119433,0.000279,5]
[359420346,1746001749984,-896.54715536,0.00027978,2]
[359420347,1746001750011,-179.562202,0.00028055,120]
[359420348,1746001750032,-224833.70713057,0.00028055,5]
[359420349,1746001751107,-500.0,0.00027384,2]
[359420350,1746001751133,-500.0,0.00027384,2]
[359420351,1746001751157,-500.0,0.00027384,2]
[359420352,1746001751181,-500.0,0.00027384,2]
[359420353,1746001751205,-500.0,0.00027384,2]
[359420354,1746001751229,-500.0,0.00027384,2]
[359420355,1746001751253,-500.0,0.00027384,2]
[359420356,1746001751280,-550.0,0.00027384,2]
[359420357,1746001751300,-110201.00029063,0.00028055,5]
[359420358,1746001761144,-9853.69066598,0.00028055,5]
[359420359,1746001766096,-1654.98419914,0.00027286,2]
[359420360,1746001766117,-23015.32291939,0.00028055,5]
[359420361,1746001768215,-158842.43250482,0.00028055,5]
[359420390,1746001832046,-516.741561,0.00027397,2]
[359420391,1746001832055,-1200.0,0.00028054,2]
[359420392,1746001832064,-73656.51272052,0.00028055,5]
[359420393,1746001832075,-3328.41505097,0.00028055,5]
[359420395,1746001832087,-31085.53110547,0.00028055,5]
[359420396,1746001832098,-2093.26761165,0.00028055,5]
[359420398,1746001832108,-500.0,0.00028073,5]
[359420400,1746001832117,-151.0,0.00028531,2]
[359420402,1746001832127,-207.4,0.00028531,2]
[359420404,1746001832136,-896.54715536,0.00028661,2]
[359420406,1746001832145,-212.218417,0.00028909,2]
[359420408,1746001832155,-4499.0494546,0.00028909,2]
[359420410,1746001832165,-194.812039,0.00028909,2]
[359420412,1746001832174,-56.73231529,0.00029135,2]
[359420414,1746001832186,-1598.25188382,0.00029135,2]
[359420416,1746001832196,-896.54715536,0.00029343,2]
[359420418,1746001832206,-2478.01980338,0.00029926,2]
[359420420,1746001832217,-303.80716961,0.00029926,2]
[359420430,1746001832299,-837.6261697,0.00029926,2]
[359420492,1746001837936,-207.43937541,0.00028054,2]
[359420493,1746001837946,-500.0,0.00028054,2]
[359420494,1746001837955,-305.05515606,0.00028054,2]
[359420495,1746001837967,-304.61494266,0.00028054,2]
[359420496,1746001838007,-195.38505734,0.00028054,2]
[359420497,1746001838017,-500.0,0.00028054,2]
[359420498,1746001838027,-500.0,0.00028054,2]
[359420499,1746001838037,-500.0,0.00028054,2]
[359420500,1746001838047,-500.0,0.00028054,2]
[359420501,1746001838057,-500.0,0.00028054,2]
[359420502,1746001838067,-500.0,0.00028054,2]
[359420503,1746001838076,-35524.25225601,0.00029926,2]
[359420504,1746001838086,-1000.0,0.00029936,2]
[359420505,1746001838096,-14529.47420894,0.00029936,2]
[359420506,1746001838106,-318.0053915,0.00029957,2]
[359420507,1746001838115,-726.98149845,0.0002999,30]
[359420508,1746001838125,-668.88,0.00029996,3]
[359420509,1746001838135,-39143.7053987,0.00030006,2]
[359420510,1746001838145,-222.96,0.00030006,3]
[359420511,1746001838154,-250.0,0.00030016,2]
[359420512,1746001838163,-70000.0,0.00030016,2]
[359420513,1746001838173,-896.54715536,0.00030026,2]
[359420514,1746001838183,-500.0,0.00030073,5]
[359420515,1746001838192,-500.0,0.00030073,5]
[359420516,1746001838202,-209.21427823,0.00030073,5]
[359420517,1746001838212,-381.6784248,0.00030073,5]
[359420518,1746001838222,-531.50382305,0.000301,2]
[359420519,1746001838231,-379.04944633,0.000301,2]
[359420520,1746001838241,-187.53476501,0.000301,2]
[359420521,1746001838250,-500.0,0.000301,2]
[359420522,1746001838260,-151.0,0.000301,16]
[359420523,1746001838269,-39143.7053987,0.00030101,2]
[359420524,1746001838279,-160.0,0.00030111,2]
[359420525,1746001838295,-160.0,0.00030111,2]
[359420526,1746001838310,-160.0,0.00030111,2]
[359420527,1746001838320,-12592.61399441,0.00030111,2]
[359420528,1746001838330,-182.04053198,0.00030111,2]
[359420529,1746001838339,-78287.4107974,0.00030126,2]
[359420530,1746001838349,-433.6030092,0.00030136,2]
[359420531,1746001838359,-8774.64755361,0.00030136,3]
[359420532,1746001838369,-415.26597725,0.00030136,5]
[359420533,1746001838379,-400.0,0.00030136,5]
[359420534,1746001838388,-400.0,0.00030136,5]
[359420535,1746001838397,-400.0,0.00030136,5]
[359420536,1746001838407,-400.0,0.00030136,5]
[359420537,1746001838416,-400.0,0.00030136,5]
[359420538,1746001838425,-400.0,0.00030136,5]
[359420539,1746001838434,-400.0,0.00030136,5]
[359420540,1746001838443,-400.0,0.00030136,5]
[359420541,1746001838453,-400.0,0.00030136,5]
[359420542,1746001838464,-400.0,0.00030136,5]
[359420543,1746001838473,-400.0,0.00030136,5]
[359420544,1746001838482,-400.0,0.00030136,5]
[359420545,1746001838492,-400.0,0.00030136,5]
[359420546,1746001838501,-515.73842085,0.00030136,5]
[359420547,1746001838511,-400.0,0.00030136,5]
[359420548,1746001838521,-400.0,0.00030136,5]
[359420549,1746001838530,-400.0,0.00030136,5]
[359420550,1746001838540,-361.13657957,0.00030136,5]
[359420551,1746001838549,-400.0,0.00030136,5]
[359420552,1746001838559,-425.03180587,0.00030136,5]
[359420553,1746001838568,-400.0,0.00030136,5]
[359420554,1746001838577,-501.25118012,0.00030136,5]
[359420555,1746001838587,-217.82263757,0.00030136,5]
[359420556,1746001838596,-400.0,0.00030136,5]
[359420557,1746001838606,-400.0,0.00030136,5]
[359420558,1746001838615,-400.0,0.00030136,5]
[359420559,1746001838624,-400.0,0.00030136,5]
[359420560,1746001838634,-318.73872714,0.00030136,5]
[359420561,1746001838643,-400.0,0.00030136,5]
[359420562,1746001838652,-400.0,0.00030136,5]
[359420563,1746001838662,-400.0,0.00030136,5]
[359420564,1746001838672,-400.0,0.00030136,5]
[359420565,1746001838681,-400.0,0.00030136,5]
[359420566,1746001838691,-400.0,0.00030136,5]
[359420567,1746001838700,-400.0,0.00030136,5]
[359420568,1746001838711,-400.0,0.00030136,5]
[359420569,1746001838913,-333.74257369,0.00030136,5]
[359420570,1746001838924,-400.0,0.00030136,5]
[359420571,1746001838934,-515.71674155,0.00030136,5]
[359420572,1746001838944,-400.0,0.00030136,5]
[359420573,1746001838954,-400.0,0.00030136,5]
[359420574,1746001838966,-322.32894168,0.00030136,5]
[359420575,1746001838975,-400.0,0.00030136,5]
[359420576,1746001838985,-400.0,0.00030136,5]
[359420577,1746001838994,-400.0,0.00030136,5]
[359420578,1746001839003,-400.0,0.00030136,5]
[359420579,1746001839013,-400.0,0.00030136,5]
[359420580,1746001839022,-400.0,0.00030136,5]
[359420581,1746001839032,-400.0,0.00030136,5]
[359420582,1746001839041,-400.0,0.00030136,5]
[359420583,1746001839050,-400.0,0.00030136,5]
[359420584,1746001839060,-400.0,0.00030136,5]
[359420585,1746001839070,-400.0,0.00030136,5]
[359420586,1746001839080,-400.0,0.00030136,5]
[359420587,1746001839090,-400.0,0.00030136,5]
[359420588,1746001839100,-215.59257275,0.00030136,5]
[359420589,1746001839109,-405.92421352,0.00030136,5]
[359420590,1746001839119,-400.0,0.00030136,5]
[359420591,1746001839129,-400.0,0.00030136,5]
[359420592,1746001839138,-503.83216367,0.00030136,5]
[359420593,1746001839148,-400.0,0.00030136,5]
[359420594,1746001839158,-400.0,0.00030136,5]
[359420595,1746001839167,-400.0,0.00030136,5]
[359420596,1746001839177,-400.0,0.00030136,5]
[359420597,1746001839187,-400.0,0.00030136,5]
[359420598,1746001839196,-400.0,0.00030136,5]
[359420599,1746001839205,-400.0,0.00030136,5]
[359420600,1746001839216,-400.0,0.00030136,5]
[359420601,1746001839225,-400.0,0.00030136,5]
[359420602,1746001839235,-400.0,0.00030136,5]
[359420603,1746001839245,-400.0,0.00030136,5]
[359420604,1746001839255,-400.0,0.00030136,5]